bitfinex/quotes_SOLUSD_20251130
["timestamp","ask_amount","ask_price","bid_price","bid_amount"]
[1764523355056,2.88495324,139.02,138.98,85.62405486]
[1764523356644,2.88495324,139.02,138.98,85.00405486]
[1764523357251,2.88495324,139.02,138.98,85.62405486]
[1764523358051,2.88495324,139.02,138.99,0.62]
[1764523358261,2.17495324,139.02,138.99,0.62]
[1764523359043,2.17495324,139.02,138.99,7.81475801]
[1764523359639,2.17495324,139.02,139.0,0.7]
[1764523360342,2.88495324,139.02,139.0,0.7]
[1764523361053,10.07834917,139.02,138.98,85.00402982]
[1764523361238,10.07834917,139.02,138.99,0.7]
[1764523362632,2.17495324,139.02,138.99,7.89472256]
[1764523363136,2.17495324,139.02,139.0,0.7]
[1764523363339,2.88495324,139.02,139.0,0.7]
[1764523363950,9.36832596,139.02,138.99,0.7]
[1764523364142,2.88495324,139.01,138.99,0.7]
[1764523364341,2.17495324,139.01,138.99,0.7]
[1764523366054,10.07832596,139.02,138.99,0.7]
[1764523367957,7.90337272,139.02,138.99,0.7]
[1764523368155,2.17495324,139.02,138.99,7.8944401]
[1764523368461,2.88495324,139.01,138.99,7.1944401]
[1764523368862,2.88495324,139.01,138.98,85.70391743]
[1764523369056,2.88495324,139.01,138.98,85.00391743]
[1764523369365,2.88495324,139.01,138.99,0.7]
[1764523371262,2.17495324,139.01,138.99,0.7]
[1764523372656,2.88495324,139.0,138.97,69.39570338]
[1764523372867,2.88495324,139.0,138.97,62.2]
[1764523373071,2.88495324,139.0,138.97,69.39575359]
[1764523373372,2.88495324,139.0,138.97,7.89575359]
[1764523373947,2.17495324,139.01,138.98,0.7]
[1764523374255,13.25832895,139.02,138.98,0.7]
[1764523374959,0.71,139.01,138.98,0.7]
[1764523375970,0.71,139.01,138.98,7.89524857]
[1764523376561,2.88495324,139.01,138.98,0.7]
[1764523377072,10.07874628,139.01,138.98,0.7]
[1764523377271,0.65,139.0,138.98,0.7]
[1764523377854,0.65,139.0,138.97,7.90568382]
[1764523378280,0.65,139.0,138.98,0.71]
[1764523378656,2.82495324,139.0,138.96,71.87608543]
[1764523378857,2.82495324,139.0,138.97,0.71]
[1764523379378,2.17495324,138.98,138.96,61.5]
[1764523379638,2.17495324,138.97,138.95,0.71]
[1764523379791,2.17495324,138.98,138.96,0.71]
[1764523380088,2.82495324,138.98,138.96,0.71]
[1764523380592,3.18,138.99,138.96,0.71]
[1764523381267,10.37477644,138.99,138.96,0.71]
[1764523381775,7.19477644,138.99,138.96,0.71]
[1764523386279,7.84477644,138.99,138.96,0.71]
[1764523389483,0.65,138.98,138.95,71.87649345]
[1764523389802,2.82495324,138.98,138.95,65.39]
[1764523390172,0.65,138.97,138.95,65.39]
[1764523390376,2.17495324,138.98,138.95,65.39]
[1764523390577,2.17495324,138.98,138.95,3.89]
[1764523390776,0.65,138.98,138.95,3.89]
[1764523391291,7.84550737,138.98,138.95,3.89]
[1764523394409,10.59140014,138.98,138.95,3.89]
[1764523394587,3.39589277,138.96,138.92,16.308864]
[1764523395095,0.65,138.95,138.92,17.018864]
[1764523395397,0.65,138.95,138.92,16.308864]
[1764523395590,3.39589277,138.96,138.93,0.71]
[1764523395777,11.24236617,138.96,138.93,0.71]
[1764523395977,10.59236617,138.96,138.93,0.71]
[1764523396402,0.65,138.95,138.93,0.71]
[1764523400181,3.39589277,138.96,138.93,7.90771955]
[1764523400382,11.24136703,138.98,138.93,7.90771955]
[1764523400582,0.65,138.97,138.94,0.71]
[1764523402819,10.59136703,138.98,138.94,7.90690554]
[1764523402991,7.91477051,138.99,138.94,11.30279831]
[1764523403191,7.91477051,138.99,138.95,3.88]
[1764523403397,11.31066328,138.99,138.95,3.88]
[1764523403588,11.31066328,138.99,138.96,0.7]
[1764523403991,3.39589277,139.0,138.96,0.7]
[1764523404290,4.11589277,139.0,138.96,0.7]
[1764523404919,4.11589277,139.0,138.96,7.89604683]
[1764523405099,4.11589277,139.0,138.97,0.7]
[1764523406514,11.31023037,139.0,138.97,0.7]
[1764523410318,3.39589277,138.99,138.97,0.7]
[1764523412020,11.31023037,139.0,138.97,0.7]
[1764523412729,3.39589277,138.99,138.97,0.7]
[1764523414704,10.59097461,138.99,138.97,0.7]
[1764523415017,11.28097461,138.99,138.97,0.7]
[1764523415524,4.08589277,138.98,138.96,61.5]
[1764523416133,0.69,138.97,138.96,61.5]
[1764523416305,0.69,138.97,138.94,72.57718941]
[1764523416899,0.69,138.97,138.95,0.7]
[1764523419921,0.69,138.98,138.95,0.7]
[1764523420124,0.69,138.97,138.95,0.7]
[1764523420508,4.08589277,138.98,138.95,0.7]
[1764523421022,10.59065498,138.99,138.95,0.7]
[1764523421210,11.28065498,138.99,138.95,0.7]
[1764523421820,0.69,138.98,138.95,0.7]
[1764523422328,4.08589277,138.98,138.95,0.7]
[1764523422706,0.69,138.97,138.95,0.7]
[1764523423327,0.69,138.98,138.95,0.7]
[1764523423526,0.69,138.98,138.95,7.89682784]
[1764523424646,4.08589277,138.98,138.95,7.19682784]
[1764523425019,0.69,138.97,138.95,7.19682784]
[1764523425931,0.69,138.97,138.95,7.89682784]
[1764523426129,3.39589277,138.98,138.95,7.89682784]
[1764523426325,4.08589277,138.98,138.95,7.89682784]
[1764523426630,0.69,138.97,138.95,7.19682784]
[1764523427919,3.39589277,138.96,138.92,88.88674946]
[1764523428123,10.59228199,138.96,138.92,88.18674946]
[1764523428322,0.69,138.95,138.92,85.70674946]
[1764523428713,0.69,138.95,138.93,0.7]
[1764523433051,3.39589277,138.96,138.93,0.7]
[1764523433333,7.19585481,138.97,138.93,14.47375923]
[1764523433533,7.88492468,138.99,138.94,12.49016083]
[1764523433724,7.88492468,138.99,138.95,3.18]
[1764523434039,4.08589277,138.99,138.95,3.88]
[1764523434334,11.2806852,138.99,138.96,0.7]
[1764523434535,0.69,138.98,138.96,0.7]
[1764523435035,11.28148242,138.98,138.95,3.18]
[1764523435209,11.28148242,138.98,138.95,3.88]
[1764523437830,7.88558965,138.98,138.95,3.88]
[1764523438031,7.88558965,138.98,138.96,0.66]
[1764523439340,10.59084645,138.99,138.96,0.66]
[1764523439934,11.31084645,138.99,138.96,0.66]
[1764523440628,24.7992844,139.01,138.96,72.7518377]
[1764523440629,7.91422817,139.01,138.96,72.7518377]
[1764523440835,32.92524676,139.03,138.98,3.39589277]
[1764523441034,28.56786235,139.05,139.0,3.39589277]
[1764523441228,3.39589277,139.04,138.99,6.57589277]
[1764523441428,3.39589277,139.0,138.96,25.84673364]
[1764523441660,3.39589277,138.97,138.95,16.308864]
[1764523441841,3.39589277,138.97,138.94,0.66]
[1764523442036,4.11589277,138.97,138.94,0.66]
[1764523442345,4.11589277,138.97,138.94,7.85713929]
[1764523445755,3.39589277,138.97,138.94,7.85713929]
[1764523446053,4.11589277,138.96,138.93,3.84]
[1764523446231,4.11589277,138.95,138.92,7.19788704]
[1764523446626,0.72,138.94,138.92,7.85788704]
[1764523448655,4.11589277,138.95,138.92,7.85788704]
[1764523449846,0.72,138.94,138.92,7.85788704]
[1764523450159,0.72,138.94,138.91,71.25426806]
[1764523450549,0.72,138.94,138.91,0.66]
[1764523450750,4.11589277,138.94,138.91,0.66]
[1764523451360,4.11589277,138.94,138.91,7.85888529]
[1764523451550,0.72,138.94,138.91,7.85888529]
[1764523452337,11.3133651,138.94,138.91,0.66]
[1764523452538,3.39589277,138.93,138.9,64.68]
[1764523452739,4.11589277,138.93,138.9,64.68]
[1764523452939,0.72,138.92,138.9,64.68]
[1764523453140,0.72,138.92,138.9,3.18]
[1764523453349,4.11589277,138.93,138.9,3.84]
[1764523453556,0.72,138.93,138.9,3.84]
[1764523453957,7.19747233,138.94,138.91,0.66]
[1764523454141,7.91747233,138.94,138.91,0.66]
[1764523454761,2.89472258,138.93,138.9,3.18]
[1764523454966,2.89472258,138.93,138.89,65.34000001]
[1764523455168,2.89472258,138.93,138.89,64.68000001]
[1764523455462,2.89472258,138.93,138.9,0.66]
[1764523456054,2.89472258,138.93,138.89,1e-08]
[1764523456055,2.17472258,138.91,138.89,1e-08]
[1764523456568,2.89472258,138.9,138.89,1e-08]
[1764523457959,10.09414662,138.9,138.89,1e-08]
[1764523465989,9.37376485,138.91,138.89,0.69000001]
[1764523466873,10.04376485,138.91,138.89,0.69000001]
[1764523467273,9.37376485,138.91,138.89,0.69000001]
[1764523470275,2.17472258,138.91,138.89,0.69000001]
[1764523471487,2.84472258,138.9,138.89,1e-08]
[1764523472398,2.17472258,138.9,138.89,1e-08]
[1764523472566,10.04396092,138.91,138.89,1e-08]
[1764523473291,2.17472258,138.91,138.89,0.69000001]
[1764523473497,6.02472258,138.91,138.89,1e-08]
[1764523473998,6.02472258,138.91,138.89,0.69000001]
[1764523476000,3.18,138.91,138.89,0.69000001]
[1764523476184,3.18,138.91,138.89,7.88993232]
[1764523476895,2.17472258,138.92,138.89,7.88993232]
[1764523477230,2.84472258,138.92,138.89,7.88993232]
[1764523477501,0.67,138.92,138.89,7.88993232]
[1764523477675,2.84472258,138.92,138.89,7.88993232]
[1764523478274,52.29294484,138.96,138.9,2.86472258]
[1764523478275,0.67,138.96,138.9,2.86472258]
[1764523478502,2.17472258,138.95,138.91,0.69]
[1764523478891,2.84472258,138.95,138.91,0.69]
[1764523479400,2.84472258,138.95,138.91,7.88887793]
[1764523479875,2.84472258,138.95,138.92,0.69]
[1764523480280,2.84472258,138.94,138.92,0.69]
[1764523480481,2.84472258,138.94,138.91,7.19887793]
[1764523480683,2.84472258,138.94,138.91,7.88887793]
[1764523483711,0.67,138.93,138.91,7.88887793]
[1764523483900,0.67,138.94,138.91,7.19887793]
[1764523484109,0.67,138.94,138.91,7.88887793]
[1764523488626,2.84472258,138.94,138.91,7.19887793]
[1764523488814,10.04229957,138.94,138.9,7.88930316]
[1764523488990,0.67,138.93,138.9,7.88930316]
[1764523491218,2.84472258,138.93,138.9,7.88930316]
[1764523491398,10.04259283,138.93,138.9,7.19930316]
[1764523491595,0.67,138.92,138.9,7.19930316]
[1764523491796,0.67,138.93,138.9,7.19930316]
[1764523492516,0.67,138.94,138.91,0.69]
[1764523494199,0.67,138.94,138.91,7.88862561]
[1764523497618,2.84472258,138.94,138.91,7.88862561]
[1764523499598,2.84472258,138.94,138.91,0.69]
[1764523499806,2.84472258,138.93,138.9,68.69923432]
[1764523500003,2.84472258,138.93,138.9,69.41923432]
[1764523500408,0.67,138.93,138.9,7.91923432]
[1764523503334,0.67,138.93,138.91,0.72]
[1764523503735,0.67,138.93,138.9,7.19923432]
[1764523503937,2.17472258,138.91,138.89,1e-08]
[1764523504234,2.17472258,138.9,138.89,1e-08]
[1764523504738,2.84472258,138.9,138.89,1e-08]
[1764523505326,10.04414662,138.9,138.89,1e-08]
[1764523507731,9.37414662,138.9,138.89,1e-08]
[1764523507938,7.19942404,138.9,138.89,1e-08]
[1764523508249,9.37414662,138.9,138.89,1e-08]
[1764523508618,10.04414662,138.9,138.89,1e-08]
[1764523509314,7.19942404,138.9,138.89,1e-08]
[1764523509513,9.37414662,138.9,138.89,1e-08]
[1764523509814,10.04414662,138.9,138.89,1e-08]
[1764523512238,13.22414662,138.9,138.89,1e-08]
[1764523512434,10.04414662,138.9,138.89,1e-08]
[1764523512634,13.22414662,138.9,138.89,1e-08]
[1764523514349,14.45025049,138.9,138.89,1e-08]
[1764523527262,11.04942404,138.9,138.89,1e-08]
[1764523527557,14.45025049,138.9,138.89,1e-08]
[1764523535473,43.254209,138.9,138.88,0.1]
[1764523535674,7.4716529,138.89,138.88,0.1]
[1764523536269,10.35713531,138.89,138.88,0.1]
[1764523537043,26.07313206,138.88,138.87,1e-08]
[1764523537243,36.05478496,138.88,138.87,1e-08]
[1764523537445,43.25524578,138.88,138.87,1e-08]
[1764523537757,46.14114455,138.88,138.87,1e-08]
[1764523538552,34.16097772,138.88,138.87,1e-08]
[1764523538759,30.76015127,138.88,138.87,1e-08]
[1764523539171,34.16097772,138.88,138.87,1e-08]
[1764523541471,26.68932482,138.88,138.87,1e-08]
[1764523541680,10.38046082,138.88,138.87,0.69000001]
[1764523541976,13.78128727,138.88,138.87,0.69000001]
[1764523542147,17.85211372,138.88,138.87,1e-08]
[1764523542347,34.16097772,138.88,138.87,1e-08]
[1764523542562,37.0466683,138.88,138.87,1e-08]
[1764523548176,46.14093636,138.88,138.87,1e-08]
[1764523548756,46.14093636,138.88,138.86,0.1]
[1764523548955,4.07082645,138.87,138.86,0.1]
[1764523549966,14.15770455,138.87,138.86,0.1]
[1764523554979,14.15770455,138.87,138.86,0.1]
[1764523556683,14.15770455,138.87,138.85,0.1]
[1764523556874,3.84,138.86,138.85,0.1]
[1764523557383,6.72589877,138.86,138.85,0.1]
[1764523557583,10.12672522,138.86,138.85,0.1]
[1764523557784,17.32822313,138.86,138.85,0.1]
[1764523558081,17.32822313,138.86,138.85,1e-08]
[1764523561082,26.28032962,138.86,138.85,1e-08]
[1764523561268,26.13816805,138.86,138.85,1e-08]
[1764523562191,26.13816805,138.86,138.84,0.1]
[1764523562370,4.06082645,138.85,138.84,0.1]
[1764523562773,6.9471417,138.85,138.84,0.1]
[1764523563168,6.9471417,138.85,138.82,0.1]
[1764523563169,15.89924819,138.85,138.82,0.1]
[1764523563368,19.70969045,138.83,138.82,0.1]
[1764523563665,3.40082645,138.83,138.82,0.1]
[1764523563873,23.2564223,138.83,138.82,0.1]
[1764523564269,30.45947639,138.83,138.82,0.1]
[1764523564466,42.9545709,138.83,138.82,1e-08]
[1764523564671,16.308864,138.81,138.8,0.1]
[1764523564871,26.2905169,138.81,138.8,0.1]
[1764523565274,29.1774571,138.81,138.8,0.1]
[1764523566693,36.38154902,138.81,138.8,0.1]
[1764523569478,37.04154902,138.81,138.8,0.1]
[1764523574497,41.14259882,138.81,138.8,0.1]
[1764523575400,50.23686688,138.81,138.8,1e-08]
[1764523575707,95.45761139,138.81,138.76,0.79]
[1764523575891,2.18054054,138.77,138.76,0.79]
[1764523576093,5.36054054,138.77,138.76,0.79]
[1764523576480,12.56670902,138.77,138.76,0.79]
[1764523580502,15.45427444,138.77,138.76,0.79]
[1764523582979,12.27427444,138.77,138.76,0.79]
[1764523583306,12.56670902,138.77,138.76,0.79]
[1764523588605,9.38670902,138.77,138.76,0.79]
[1764523588809,12.56670902,138.77,138.76,0.79]
[1764523589709,23.61709827,138.81,138.76,0.79]
[1764523590022,8.80994492,138.83,138.77,2.18054054]
[1764523590023,7.20388746,138.82,138.77,2.18054054]
[1764523590205,2.18054054,138.82,138.77,2.18054054]
[1764523590402,2.18054054,138.82,138.78,0.68]
[1764523590900,2.18054054,138.84,138.79,10.99048546]
[1764523591107,5.36054054,138.84,138.79,8.80994492]
[1764523591318,5.36054054,138.84,138.8,0.68]
[1764523591486,0.2,138.94,138.88,1.99999999]
[1764523591690,0.2,138.94,138.93,27.29934946]
[1764523591887,0.2,138.94,138.93,30.7636726]
[1764523592614,0.2,138.94,138.93,16.308864]
[1764523592795,0.2,138.94,138.93,19.488864]
[1764523593319,0.2,138.94,138.93,21.66940454]
[1764523593994,0.2,138.94,138.93,28.86727397]
[1764523594615,2.38054054,138.94,138.91,3.18]
[1764523594920,2.18054054,138.93,138.9,3.18]
[1764523596026,0.2,138.94,138.89,7.19955159]
[1764523596406,0.2,138.94,138.89,9.38009213]
[1764523596724,2.38054054,138.94,138.89,9.38009213]
[1764523597114,2.18054054,138.93,138.89,7.19955159]
[1764523597495,2.18054054,138.92,138.89,7.19955159]
[1764523597896,2.18054054,138.91,138.88,16.0102702]
[1764523601820,2.18054054,138.92,138.88,16.0102702]
[1764523604713,2.18054054,138.93,138.88,18.19081074]
[1764523604927,2.38054054,138.94,138.89,2.18054054]
[1764523605128,0.2,138.94,138.9,3.18]
[1764523605329,0.86,138.94,138.9,3.18]
[1764523605504,3.04054054,138.94,138.9,3.18]
[1764523606728,2.38054054,138.94,138.9,3.18]
[1764523606914,2.38054054,138.94,138.91,7.19890576]
[1764523609024,2.18054054,138.93,138.91,7.19890576]
[1764523610130,2.18054054,138.93,138.9,10.37925374]
[1764523612929,3.04054054,138.94,138.9,10.37925374]
[1764523614015,0.2,138.94,138.9,28.37781385]
[1764523614732,0.86,138.94,138.9,28.37781385]
[1764523615232,3.04054054,138.94,138.9,28.37781385]
[1764523616133,2.84054054,138.93,138.9,10.37925374]
[1764523616628,2.84054054,138.92,138.9,3.18]
[1764523617018,0.66,138.91,138.9,3.18]
[1764523617216,2.18054054,138.92,138.9,3.18]
[1764523617420,2.84054054,138.92,138.9,10.37931497]
[1764523617928,0.66,138.92,138.9,10.37931497]
[1764523618832,0.66,138.92,138.88,10.99048546]
[1764523619037,2.18054054,138.9,138.88,3.18]
[1764523619529,2.84054054,138.89,138.86,7.20135183]
[1764523619715,2.84054054,138.89,138.86,10.38135183]
[1764523619916,2.84054054,138.88,138.86,10.38135183]
[1764523620228,0.66,138.88,138.86,10.38135183]
[1764523620533,2.18054054,138.89,138.86,10.38135183]
[1764523620720,2.84054054,138.89,138.86,10.38135183]
[1764523620927,0.66,138.89,138.86,10.38135183]
[1764523624333,0.66,138.89,138.85,25.20665431]
[1764523624541,0.66,138.89,138.86,3.18]
[1764523625444,0.66,138.89,138.87,7.20097933]
[1764523626234,2.84054054,138.89,138.87,7.20097933]
[1764523626745,0.66,138.89,138.87,7.20097933]
[1764523626937,0.66,138.89,138.86,7.20149791]
[1764523627138,0.66,138.89,138.86,10.38149791]
[1764523627639,2.18054054,138.9,138.86,10.38149791]
[1764523627640,2.84054054,138.9,138.86,10.38149791]
[1764523628841,0.66,138.9,138.86,10.38149791]
[1764523629147,2.84054054,138.9,138.86,10.38149791]
[1764523629643,0.66,138.89,138.86,10.38149791]
[1764523630239,0.66,138.9,138.86,10.38149791]
[1764523630745,0.66,138.9,138.86,28.38524268]
[1764523631449,2.84054054,138.9,138.86,28.38524268]
[1764523631833,0.66,138.89,138.86,28.38524268]
[1764523632547,2.84054054,138.89,138.86,7.20149791]
[1764523632747,2.84054054,138.89,138.86,10.38149791]
[1764523634440,0.66,138.88,138.86,10.38149791]
[1764523635352,2.18054054,138.89,138.86,10.38149791]
[1764523635557,2.84054054,138.89,138.86,10.38149791]
[1764523636046,0.66,138.89,138.86,10.38149791]
[1764523645846,0.66,138.89,138.86,7.20149791]
[1764523646035,0.66,138.89,138.86,10.38149791]
[1764523661866,4.06047135,138.91,138.86,31.78571403]
[1764523662066,0.66,138.9,138.86,31.78571403]
[1764523662750,40.88175361,138.95,138.87,8.80994492]
[1764523662950,0.66,138.93,138.88,3.18]
[1764523663267,4.06047135,138.93,138.88,3.18]
[1764523663668,0.66,138.93,138.89,12.21041627]
[1764523663868,0.66,138.92,138.9,3.18]
[1764523664943,0.66,138.92,138.91,7.19890576]
[1764523666667,4.06047135,138.92,138.9,3.18]
[1764523666971,3.40047135,138.91,138.9,3.18]
[1764523667266,4.06047135,138.91,138.89,7.19963967]
[1764523667457,4.06047135,138.91,138.89,10.37963967]
[1764523668073,0.66,138.91,138.89,10.37963967]
[1764523670372,4.06047135,138.91,138.89,10.37963967]
[1764523671170,0.66,138.9,138.89,10.37963967]
[1764523673677,0.66,138.9,138.89,7.19963967]
[1764523673878,4.06047135,138.9,138.88,61.5]
[1764523674379,0.66,138.89,138.88,61.5]
[1764523674578,0.66,138.89,138.87,19.488864]
[1764523675275,0.66,138.89,138.87,26.68962087]
[1764523680781,4.12047135,138.9,138.87,26.68962087]
[1764523681376,0.72,138.9,138.87,26.68962087]
[1764523681580,3.40047135,138.93,138.88,12.21041627]
[1764523681889,3.40047135,138.93,138.89,3.18]
[1764523681890,4.12047135,138.93,138.89,3.18]
[1764523682095,0.72,138.92,138.89,3.18]
[1764523682583,0.72,138.92,138.9,7.19942404]
[1764523682797,0.72,138.93,138.9,10.37942404]
[1764523682956,0.72,138.93,138.9,13.77989539]
[1764523683157,0.92,138.94,138.9,13.77989539]
[1764523684077,0.2,138.94,138.9,13.77989539]
[1764523684276,0.2,138.94,138.9,10.59989539]
[1764523684481,0.92,138.94,138.91,10.3784294]
[1764523684872,0.72,138.93,138.91,10.3784294]
[1764523685173,0.72,138.93,138.91,7.1984294]
[1764523685371,0.72,138.93,138.91,10.3784294]
[1764523696199,0.72,138.93,138.9,7.19928658]
[1764523696495,2.89526742,138.93,138.9,3.18]
[1764523696868,0.72,138.92,138.9,3.18]
[1764523697280,0.72,138.92,138.9,10.37916146]
[1764523697695,0.92,138.94,138.9,12.55442888]
[1764523697994,0.72,138.93,138.9,12.55442888]
[1764523698195,0.72,138.93,138.9,10.37916146]
[1764523704304,2.89526742,138.93,138.9,10.37916146]
[1764523704705,0.67,138.92,138.9,10.37916146]
[1764523704899,0.67,138.92,138.9,7.19916146]
[1764523705301,0.67,138.92,138.91,3.18]
[1764523706497,0.67,138.92,138.9,7.19916146]
[1764523706702,0.67,138.92,138.91,3.18]
[1764523706881,0.67,138.92,138.9,10.37916146]
[1764523724619,0.67,138.92,138.9,7.19916146]
[1764523724811,2.84526742,138.92,138.9,10.37916146]
[1764523725315,0.68,138.91,138.9,10.37916146]
[1764523734421,2.85526742,138.91,138.9,3.18]
[1764523739346,2.85526742,138.91,138.88,16.01032786]
[1764523739507,2.83526742,138.9,138.88,19.19032786]
[1764523739707,0.66,138.9,138.88,19.19032786]
[1764523739925,0.66,138.89,138.88,19.19032786]
[1764523740625,0.66,138.9,138.88,19.19032786]
[1764523749857,0.66,138.9,138.87,34.31074133]
[1764523749858,2.17526742,138.89,138.87,3.18]
[1764523750344,0.66,138.88,138.87,3.18]
[1764523754069,0.66,138.88,138.87,10.38097933]
[1764523756868,0.66,138.9,138.87,10.38097933]
[1764523757073,2.17526742,138.91,138.87,10.38097933]
[1764523757298,10.57766699,138.94,138.88,8.80994492]
[1764523757489,0.66,138.91,138.88,8.80994492]
[1764523757693,0.66,138.91,138.89,3.18]
[1764523759190,4.05949171,138.91,138.89,3.18]
[1764523759581,0.66,138.9,138.89,3.18]
[1764523766106,4.05949171,138.9,138.89,3.18]
[1764523766498,0.66,138.9,138.89,3.18]
[1764523773024,0.67,138.93,138.89,10.37978738]
[1764523773326,0.67,138.92,138.89,10.37978738]
[1764523785440,0.67,138.92,138.9,8.80994492]
[1764523785729,0.67,138.92,138.91,3.18]
[1764523787735,0.67,138.92,138.91,10.37890576]
[1764523791237,14.5937158,138.94,138.91,10.37890576]
[1764523791449,0.67,138.93,138.91,13.77839747]
[1764523792241,0.67,138.93,138.91,10.59839747]
[1764523792443,0.67,138.93,138.91,13.77839747]
[1764523796877,0.67,138.93,138.91,10.59839747]
[1764523797047,0.67,138.93,138.92,3.18]
[1764523797662,15.2837158,138.94,138.92,13.77755688]
[1764523797872,0.89,138.94,138.93,3.39949171]
[1764523798752,0.89,138.94,138.93,8.80994492]
[1764523798945,0.89,138.94,138.93,16.00781435]
[1764523799373,0.2,138.94,138.93,16.00781435]
[1764523799548,0.2,138.94,138.93,19.40730606]
[1764523800041,0.2,138.94,138.93,42.36165366]
[1764523800245,0.2,138.94,138.93,20.41141614]
[1764523800462,0.2,138.94,138.93,34.18897302]
[1764523802446,0.2,138.94,138.93,56.06355734]
[1764523803861,0.69,138.99,138.94,9.09426806]
[1764523804062,0.69,138.99,138.96,28.80262377]
[1764523804267,0.69,138.99,138.97,3.18]
[1764523805473,0.69,138.99,138.98,7.19527989]
[1764523805675,0.69,138.99,138.98,16.00522481]
[1764523807073,0.69,138.99,138.98,19.40471652]
[1764523807275,0.69,138.99,138.98,16.00522481]
[1764523810972,0.69,138.99,138.98,19.40471652]
[1764523811783,0.69,138.99,138.97,10.37563125]
[1764523811975,0.69,138.99,138.97,13.77512296]
[1764523812988,0.69,138.99,138.98,10.5947716]
[1764523814283,0.2,139.01,138.99,8.80994492]
[1764523814470,0.2,139.01,139.0,12.20943663]
[1764523814663,0.2,139.01,139.0,12.49375977]
[1764523815081,0.2,139.01,139.0,41.29483212]
[1764523815881,0.89,139.01,139.0,19.68800437]
[1764523816085,0.89,139.01,139.0,19.44851266]
[1764523816290,0.89,139.01,139.0,22.84800437]
[1764523817697,0.2,139.01,139.0,22.84800437]
[1764523820372,0.2,139.01,139.0,21.6191272]
[1764523821193,1e-08,139.01,139.0,19.44851266]
[1764523821406,1e-08,139.01,139.0,21.6191272]
[1764523822298,1e-08,139.01,139.0,37.9279912]
[1764523822595,0.2,139.02,139.01,9.09426806]
[1764523822803,0.2,139.02,139.01,11.9842553]
[1764523823501,0.2,139.02,139.01,22.0584778]
[1764523825301,0.2,139.02,139.01,25.2184778]
[1764523827200,0.2,139.02,139.01,86.7184778]
[1764523830297,0.88,139.02,139.01,83.82849056]
[1764523830906,0.88,139.02,139.01,80.66849056]
[1764523831096,0.88,139.02,139.01,80.94799512]
[1764523831413,0.88,139.02,139.01,80.80583355]
[1764523831998,0.88,139.02,139.01,80.94799512]
[1764523833623,0.2,139.02,139.01,83.11860966]
[1764523833996,0.2,139.02,139.01,85.99952002]
[1764523842103,0.2,139.03,139.02,77.58747767]
[1764523842416,0.2,139.03,139.02,79.75809221]
[1764523844020,0.2,139.03,139.02,82.63858765]
[1764523847912,0.88,139.03,139.02,83.62797311]
[1764523848117,0.88,139.03,139.02,80.74747767]
[1764523848930,0.2,139.03,139.02,82.91809221]
[1764523849227,0.88,139.03,139.02,82.91809221]
[1764523853136,0.88,139.03,139.02,80.74747767]
[1764523853524,0.2,139.03,139.02,82.91809221]
[1764523854522,0.88,139.03,139.02,82.91809221]
[1764523856139,0.88,139.03,139.02,80.74747767]
[1764523860450,0.2,139.03,139.02,83.63741317]
[1764523861351,0.2,139.03,139.02,99.94627717]
[1764523862048,0.2,139.04,139.02,99.94627717]
[1764523862049,0.91,139.04,139.03,70.05210649]
[1764523862252,0.91,139.04,139.03,77.38696028]
[1764523864542,0.2,139.04,139.03,77.38696028]
[1764523864725,0.91,139.04,139.03,77.38696028]
[1764523865351,0.2,139.04,139.03,79.55757482]
[1764523870729,0.2,139.05,139.04,9.09426806]
[1764523870938,0.2,139.05,139.04,15.14410009]
[1764523871649,0.2,139.05,139.04,76.24410009]
[1764523872149,0.2,139.05,139.04,83.436275]
[1764523873267,0.91,139.05,139.04,83.436275]
[1764523873634,0.91,139.05,139.04,81.26566046]